fUSD/lending_fUSD_20240523
["ID","MTS","AMOUNT","RATE_DAILY","PERIOD"]
[327804674,1716495044077,-173.0,0.00022,2]
[327804675,1716495044086,-600.0,0.00022054,2]
[327804676,1716495044095,-700.0,0.00022054,2]
[327804677,1716495044104,-152.5591619,0.00022065,2]
[327804678,1716495044114,-10000.0,0.00022091,2]
[327804680,1716495044124,-1000.0,0.00022091,2]
[327804682,1716495044134,-7500.0,0.00022091,2]
[327804684,1716495044144,-174.36,0.00022125,2]
[327804686,1716495044153,-151.82,0.00022181,2]
[327804688,1716495044163,-155.20881481,0.00022182,2]
[327804691,1716495044175,-405.14365341,0.00022188,2]
[327804692,1716495044185,-294.92860328,0.0002219,2]
[327804694,1716495044194,-270.19939067,0.0002219,2]
[327804696,1716495044204,-500.0,0.00022191,2]
[327804699,1716495044219,-231.32580625,0.00022191,2]
[327804701,1716495044232,-500.0,0.00022191,2]
[327804704,1716495044241,-421.75218154,0.00022191,2]
[327804707,1716495044250,-500.0,0.00022191,2]
[327804710,1716495044259,-500.0,0.00022191,2]
[327804711,1716495044269,-500.0,0.00022191,2]
[327804713,1716495044279,-500.0,0.00022191,2]
[327804715,1716495044289,-500.0,0.00022191,2]
[327804716,1716495044298,-500.0,0.00022191,2]
[327804717,1716495044311,-500.0,0.00022191,2]
[327804718,1716495044320,-500.0,0.00022191,2]
[327804719,1716495044329,-500.0,0.00022191,2]
[327804720,1716495044338,-395.53,0.00022191,2]
[327804721,1716495044348,-500.0,0.00022191,2]
[327804723,1716495044358,-500.0,0.00022191,2]
[327804725,1716495044367,-500.0,0.00022191,2]
[327804727,1716495044376,-500.0,0.00022191,2]
[327804729,1716495044386,-500.0,0.00022191,2]
[327804731,1716495044395,-500.0,0.00022191,2]
[327804732,1716495044406,-500.0,0.00022191,2]
[327804734,1716495044415,-533.39,0.00022191,2]
[327804736,1716495044424,-500.0,0.00022191,2]
[327804738,1716495044434,-500.0,0.00022191,2]
[327804740,1716495044443,-500.0,0.00022191,2]
[327804742,1716495044452,-500.0,0.00022191,2]
[327804744,1716495044462,-500.0,0.00022191,2]
[327804746,1716495044473,-500.0,0.00022191,2]
[327804748,1716495044483,-500.0,0.00022191,2]
[327804750,1716495044493,-195.96,0.00022191,2]
[327804752,1716495044503,-500.0,0.00022191,2]
[327804753,1716495044513,-724.57,0.00022191,2]
[327804754,1716495044523,-417.49750124,0.00022191,2]
[327804755,1716495044533,-500.0,0.00022191,2]
[327804756,1716495044543,-500.0,0.00022191,2]
[327804757,1716495044553,-308.87,0.00022191,2]
[327804758,1716495044563,-500.0,0.00022191,2]
[327804759,1716495044572,-500.0,0.00022191,2]
[327804760,1716495044583,-500.0,0.00022191,2]
[327804761,1716495044592,-221.5192666,0.00022191,2]
[327804762,1716495044602,-553.46,0.00022191,2]
[327804763,1716495044611,-150.0,0.00022191,2]
[327804764,1716495044621,-500.0,0.00022191,2]
[327804765,1716495044630,-500.0,0.00022191,2]
[327804766,1716495044640,-500.0,0.00022191,2]
[327804767,1716495044650,-500.0,0.00022191,2]
[327804768,1716495044660,-500.0,0.00022191,2]
[327804769,1716495044670,-187.83,0.00022191,2]
[327804770,1716495044680,-500.0,0.00022191,2]
[327804771,1716495044690,-500.0,0.00022191,2]
[327804773,1716495044699,-500.0,0.00022191,2]
[327804775,1716495044709,-500.0,0.00022191,2]
[327804776,1716495044719,-151.0,0.00022191,7]
[327804778,1716495044729,-151.0,0.00022191,7]
[327804780,1716495044738,-158.440197,0.00022191,7]
[327804782,1716495044748,-151.0,0.00022191,7]
[327804784,1716495044758,-185.846129,0.00022191,7]
[327804786,1716495044767,-294.963847,0.00022191,7]
[327804788,1716495044777,-570.85,0.00022191,2]
[327804790,1716495044787,-500.0,0.00022191,2]
[327804792,1716495044796,-500.0,0.00022191,2]
[327804793,1716495044805,-500.0,0.00022191,2]
[327804794,1716495044815,-500.0,0.00022191,2]
[327804795,1716495044824,-151.0,0.00022191,7]
[327804796,1716495044833,-500.0,0.00022191,2]
[327804797,1716495044843,-515.0,0.00022191,2]
[327804798,1716495044853,-500.0,0.00022191,2]
[327804799,1716495044863,-591.74,0.00022191,2]
[327804800,1716495044873,-2864.0,0.00022191,2]
[327804801,1716495044883,-166.18,0.00022191,2]
[327804802,1716495044894,-500.0,0.00022191,2]
[327804803,1716495044904,-151.0,0.00022191,7]
[327804804,1716495044914,-500.0,0.00022191,2]
[327804805,1716495044924,-500.0,0.00022191,2]
[327804806,1716495044935,-500.0,0.00022191,2]
[327804807,1716495044945,-943.12,0.00022191,2]
[327804808,1716495044955,-500.0,0.00022191,2]
[327804809,1716495044967,-1280.8,0.00022191,2]
[327804810,1716495044978,-500.0,0.00022191,2]
[327804811,1716495044988,-500.0,0.00022191,2]
[327804812,1716495044998,-706.51,0.00022191,2]
[327804813,1716495045009,-520.62,0.00022191,2]
[327804814,1716495045019,-500.0,0.00022191,2]
[327804815,1716495045030,-739.35,0.00022191,2]
[327804816,1716495045040,-931.2,0.00022191,2]
[327804817,1716495045050,-500.0,0.00022191,2]
[327804818,1716495045061,-291.75940365,0.00022191,2]
[327804819,1716495045071,-500.0,0.00022191,2]
[327804820,1716495045081,-500.0,0.00022191,2]
[327804821,1716495045091,-500.0,0.00022191,2]
[327804822,1716495045100,-1024.24,0.00022191,2]
[327804823,1716495045110,-500.0,0.00022191,2]
[327804824,1716495045120,-500.0,0.00022191,2]
[327804825,1716495045130,-500.0,0.00022191,2]
[327804826,1716495045140,-500.0,0.00022191,2]
[327804827,1716495045150,-500.0,0.00022191,2]
[327804828,1716495045160,-500.0,0.00022191,2]
[327804829,1716495045171,-500.0,0.00022191,2]
[327804830,1716495045181,-500.0,0.00022191,2]
[327804831,1716495045191,-500.0,0.00022191,2]
[327804832,1716495045201,-500.0,0.00022191,2]
[327804833,1716495045217,-500.0,0.00022191,2]
[327804834,1716495045227,-621.39,0.00022191,2]
[327804835,1716495045236,-170.367418,0.00022191,7]
[327804836,1716495045247,-500.0,0.00022191,2]
[327804837,1716495045260,-918.01,0.00022191,2]
[327804838,1716495045272,-1482.24,0.00022191,2]
[327804839,1716495045283,-500.0,0.00022191,2]
[327804840,1716495045294,-500.0,0.00022191,2]
[327804841,1716495045305,-181.87088564,0.00022191,2]
[327804842,1716495045315,-500.0,0.00022191,2]
[327804843,1716495045326,-503.1,0.00022191,2]
[327804844,1716495045336,-151.0,0.00022191,7]
[327804845,1716495045347,-500.0,0.00022191,2]
[327804846,1716495045357,-500.0,0.00022191,2]
[327804847,1716495045369,-689.78,0.00022191,2]
[327804848,1716495045380,-413.91,0.00022191,2]
[327804849,1716495045391,-274.179364,0.00022191,7]
[327804850,1716495045402,-541.94,0.00022191,2]
[327804851,1716495045413,-980.66,0.00022191,2]
[327804852,1716495045423,-500.0,0.00022191,2]
[327804853,1716495045433,-500.0,0.00022191,2]
[327804854,1716495045443,-500.0,0.00022191,2]
[327804855,1716495045455,-919.72,0.00022191,2]
[327804856,1716495045468,-500.0,0.00022191,2]
[327804857,1716495045479,-609.39,0.00022191,2]
[327804858,1716495045490,-619.18600079,0.00022191,2]
[327804859,1716495045501,-500.0,0.00022191,2]
[327804860,1716495045511,-500.0,0.00022191,2]
[327804861,1716495045521,-500.0,0.00022191,2]
[327804862,1716495045532,-500.0,0.00022191,2]
[327804863,1716495045542,-826.38,0.00022191,2]
[327804864,1716495045552,-500.0,0.00022191,2]
[327804865,1716495045562,-500.0,0.00022191,2]
[327804866,1716495045573,-500.0,0.00022191,2]
[327804867,1716495045583,-500.0,0.00022191,2]
[327804868,1716495045594,-383.07128837,0.00022191,2]
[327804869,1716495045603,-1330.87,0.00022191,2]
[327804870,1716495045614,-500.0,0.00022191,2]
[327804871,1716495045624,-151.0,0.00022191,7]
[327804872,1716495045634,-500.0,0.00022191,2]
[327804873,1716495045643,-1563.58,0.00022191,2]
[327804874,1716495045654,-500.0,0.00022191,2]
[327804875,1716495045664,-500.0,0.00022191,2]
[327804876,1716495045674,-500.0,0.00022191,2]
[327804877,1716495045684,-420.99330649,0.00022191,2]
[327804878,1716495045694,-500.0,0.00022191,2]
[327804879,1716495045704,-500.0,0.00022191,2]
[327804880,1716495045717,-1168.78,0.00022191,2]
[327804881,1716495045728,-500.0,0.00022191,2]
[327804882,1716495045739,-500.0,0.00022191,2]
[327804883,1716495045749,-262.94,0.00022191,2]
[327804884,1716495045758,-500.0,0.00022191,2]
[327804885,1716495045769,-500.01,0.00022191,2]
[327804886,1716495045779,-500.0,0.00022191,2]
[327804887,1716495045788,-500.0,0.00022191,2]
[327804888,1716495045798,-248.705949,0.00022191,7]
[327804889,1716495045808,-500.0,0.00022191,2]
[327804890,1716495045818,-500.0,0.00022191,2]
[327804891,1716495045828,-500.0,0.00022191,2]
[327804892,1716495045838,-500.0,0.00022191,2]
[327804893,1716495045848,-500.0,0.00022191,2]
[327804894,1716495045857,-500.0,0.00022191,2]
[327804895,1716495045867,-500.0,0.00022191,2]
[327804896,1716495045877,-271.004898,0.00022191,7]
[327804897,1716495045887,-500.0,0.00022191,2]
[327804898,1716495045896,-500.0,0.00022191,2]
[327804899,1716495045906,-500.0,0.00022191,2]
[327804901,1716495045916,-271.004898,0.00022191,7]
[327804902,1716495045925,-667.07,0.00022191,2]
[327804903,1716495045935,-500.0,0.00022191,2]
[327804904,1716495045945,-500.0,0.00022191,2]
[327804905,1716495045955,-151.0,0.00022191,7]
[327804906,1716495045966,-500.0,0.00022191,2]
[327804908,1716495045976,-5628.15,0.00022191,2]
[327804910,1716495045986,-500.0,0.00022191,2]
[327804912,1716495045995,-500.0,0.00022191,2]
[327804913,1716495046005,-500.0,0.00022191,2]
[327804914,1716495046015,-7035.79,0.00022191,2]
[327804915,1716495046024,-500.0,0.00022191,2]
[327804916,1716495046034,-500.0,0.00022191,2]
[327804917,1716495046043,-470.543086,0.00022191,7]
[327804919,1716495046053,-500.0,0.00022197,2]
[327804923,1716495046063,-317.97841913,0.00022258,2]
[327804926,1716495046072,-176.12813558,0.00022271,2]
[327804929,1716495046082,-163.00887148,0.00022271,2]
[327804932,1716495046092,-551.99,0.00022292,2]
[327804934,1716495046101,-151.94633522,0.00022315,2]
[327804938,1716495046111,-18895.03851364,0.00022365,2]
[327804941,1716495046121,-150.79495141,0.00022402,2]
[327804943,1716495046131,-187.62026683,0.00022438,2]
[327804947,1716495046140,-229.62054587,0.00022455,2]
[327804951,1716495046150,-150.0,0.0002246,2]
[327804954,1716495046159,-150.0,0.0002246,2]
[327804957,1716495046168,-150.0,0.0002246,2]
[327804959,1716495046178,-150.0,0.0002246,2]
[327804963,1716495046188,-500.0,0.00022465,2]
[327804966,1716495046198,-500.0,0.00022465,2]
[327804969,1716495046208,-500.0,0.00022465,2]
[327804971,1716495046222,-151.0,0.00022465,7]
[327804975,1716495046233,-500.0,0.00022465,2]
[327804980,1716495046243,-500.0,0.00022465,2]
[327804985,1716495046252,-500.0,0.00022465,2]
[327804989,1716495046263,-500.0,0.00022465,2]
[327804994,1716495046272,-500.0,0.00022465,2]
[327804998,1716495046282,-500.0,0.00022465,2]
[327805001,1716495046292,-224.31784017,0.00022465,2]
[327805003,1716495046304,-500.0,0.00022465,2]
[327805006,1716495046315,-500.0,0.00022465,2]
[327805009,1716495046324,-500.0,0.00022465,2]
[327805012,1716495046334,-500.0,0.00022465,2]
[327805014,1716495046344,-500.0,0.00022465,2]
[327805017,1716495046355,-500.0,0.00022465,2]
[327805019,1716495046365,-500.0,0.00022465,2]
[327805021,1716495046374,-533.39,0.00022465,2]
[327805023,1716495046384,-640.46241486,0.00022465,2]
[327805025,1716495046394,-500.0,0.00022465,2]
[327805027,1716495046405,-500.0,0.00022465,2]
[327805029,1716495046415,-500.0,0.00022465,2]
[327805031,1716495046425,-500.0,0.00022465,2]
[327805033,1716495046435,-500.0,0.00022465,2]
[327805035,1716495046445,-500.0,0.00022465,2]
[327805036,1716495046456,-500.0,0.00022465,2]
[327805037,1716495046470,-724.57,0.00022465,2]
[327805038,1716495046480,-500.0,0.00022465,2]
[327805040,1716495046491,-500.0,0.00022465,2]
[327805042,1716495046501,-500.0,0.00022465,2]
[327805044,1716495046512,-500.0,0.00022465,2]
[327805046,1716495046524,-150.0,0.00022465,2]
[327805048,1716495046536,-500.0,0.00022465,2]
[327805050,1716495046545,-500.0,0.00022465,2]
[327805052,1716495046555,-151.0,0.00022465,7]
[327805054,1716495046564,-500.0,0.00022465,2]
[327805056,1716495046574,-500.0,0.00022465,2]
[327805058,1716495046583,-500.0,0.00022465,2]
[327805060,1716495046593,-151.0,0.00022465,7]
[327805061,1716495046602,-151.0,0.00022465,7]
[327805063,1716495046612,-338.88913347,0.00022465,2]
[327805066,1716495046622,-192.70785476,0.00022465,2]
[327805067,1716495046632,-500.0,0.00022465,2]
[327805069,1716495046641,-151.0,0.00022465,7]
[327805071,1716495046651,-151.0,0.00022465,7]
[327805073,1716495046660,-500.0,0.00022465,2]
[327805075,1716495046671,-151.0,0.00022465,7]
[327805077,1716495046680,-151.0,0.00022465,7]
[327805079,1716495046690,-294.963847,0.00022465,7]
[327805081,1716495046700,-294.963847,0.00022465,7]
[327805083,1716495046711,-570.85,0.00022465,2]
[327805085,1716495046728,-500.0,0.00022465,2]
[327805087,1716495046739,-500.0,0.00022465,2]
[327805089,1716495046750,-500.0,0.00022465,2]
[327805091,1716495046761,-151.0,0.00022465,7]
[327805093,1716495046772,-500.0,0.00022465,2]
[327805095,1716495046782,-515.0,0.00022465,2]
[327805097,1716495046793,-500.0,0.00022465,2]
[327805114,1716495046955,-591.74,0.00022465,2]
[327805115,1716495046972,-2864.0,0.00022465,2]
[327805116,1716495046982,-500.0,0.00022465,2]
[327805117,1716495046991,-261.217388,0.00022465,7]
[327805118,1716495047000,-386.98,0.00022465,2]
[327805119,1716495047010,-500.0,0.00022465,2]
[327805120,1716495047020,-500.0,0.00022465,2]
[327805121,1716495047030,-943.12,0.00022465,2]
[327805122,1716495047039,-500.0,0.00022465,2]
[327805123,1716495047049,-1280.8,0.00022465,2]
[327805124,1716495047059,-500.0,0.00022465,2]
[327805125,1716495047068,-500.0,0.00022465,2]
[327805126,1716495047078,-706.51,0.00022465,2]
[327805127,1716495047089,-520.62,0.00022465,2]
[327805128,1716495047098,-500.0,0.00022465,2]
[327805129,1716495047108,-739.35,0.00022465,2]
[327805130,1716495047117,-931.2,0.00022465,2]
[327805131,1716495047128,-500.0,0.00022465,2]
[327805132,1716495047137,-500.0,0.00022465,2]
[327805133,1716495047146,-500.0,0.00022465,2]
[327805134,1716495047156,-500.0,0.00022465,2]
[327805135,1716495047167,-1024.24,0.00022465,2]
[327805136,1716495047176,-500.0,0.00022465,2]
[327805137,1716495047186,-163.62,0.00022465,2]
[327805138,1716495047196,-500.0,0.00022465,2]
[327805139,1716495047205,-500.0,0.00022465,2]
[327805140,1716495047225,-500.0,0.00022465,2]
[327805141,1716495047235,-500.0,0.00022465,2]
[327805142,1716495047245,-609.20039513,0.00022465,2]
[327805143,1716495047255,-500.0,0.00022465,2]
[327805144,1716495047267,-428.515202,0.00022465,2]
[327805145,1716495047277,-500.0,0.00022465,2]
[327805146,1716495047287,-500.0,0.00022465,2]
[327805147,1716495047297,-621.39,0.00022465,2]
[327805148,1716495047307,-500.0,0.00022465,2]
[327805149,1716495047318,-918.01,0.00022465,2]
[327805150,1716495047327,-1482.24,0.00022465,2]
[327805151,1716495047338,-500.0,0.00022465,2]
[327805152,1716495047348,-500.0,0.00022465,2]
[327805153,1716495047362,-503.1,0.00022465,2]
[327805154,1716495047372,-500.0,0.00022465,2]
[327805155,1716495047381,-151.0,0.00022465,7]
[327805156,1716495047390,-500.0,0.00022465,2]
[327805157,1716495047400,-500.0,0.00022465,2]
[327805158,1716495047410,-689.78,0.00022465,2]
[327805159,1716495047419,-541.94,0.00022465,2]
[327805161,1716495047429,-980.66,0.00022465,2]
[327805164,1716495047439,-500.0,0.00022465,2]
[327805167,1716495047448,-500.0,0.00022465,2]
[327805170,1716495047458,-500.0,0.00022465,2]
[327805173,1716495047468,-919.72,0.00022465,2]
[327805176,1716495047477,-500.0,0.00022465,2]
[327805179,1716495047487,-609.39,0.00022465,2]
[327805182,1716495047496,-500.0,0.00022465,2]
[327805184,1716495047506,-500.0,0.00022465,2]
[327805185,1716495047515,-500.0,0.00022465,2]
[327805187,1716495047524,-500.0,0.00022465,2]
[327805189,1716495047534,-826.38,0.00022465,2]
[327805191,1716495047543,-500.0,0.00022465,2]
[327805193,1716495047554,-590.93,0.00022465,2]
[327805194,1716495047563,-500.0,0.00022465,2]
[327805195,1716495047573,-1330.87,0.00022465,2]
[327805197,1716495047582,-500.0,0.00022465,2]
[327805199,1716495047591,-151.0,0.00022465,7]
[327805201,1716495047600,-500.0,0.00022465,2]
[327805203,1716495047611,-1563.58,0.00022465,2]
[327805205,1716495047620,-500.0,0.00022465,2]
[327805207,1716495047629,-500.0,0.00022465,2]
[327805209,1716495047638,-500.0,0.00022465,2]
[327805210,1716495047648,-500.0,0.00022465,2]
[327805212,1716495047657,-500.0,0.00022465,2]
[327805214,1716495047667,-1168.78,0.00022465,2]
[327805216,1716495047677,-500.0,0.00022465,2]
[327805218,1716495047687,-500.0,0.00022465,2]
[327805221,1716495047697,-500.0,0.00022465,2]
[327805222,1716495047707,-500.01,0.00022465,2]
[327805224,1716495047719,-500.0,0.00022465,2]
[327805226,1716495047728,-500.0,0.00022465,2]
[327805228,1716495047738,-500.0,0.00022465,2]
[327805231,1716495047748,-500.0,0.00022465,2]
[327805233,1716495047757,-500.0,0.00022465,2]
[327805235,1716495047767,-500.0,0.00022465,2]
[327805236,1716495047776,-500.0,0.00022465,2]
[327805238,1716495047786,-500.0,0.00022465,2]
[327805241,1716495047796,-271.004898,0.00022465,7]
[327805243,1716495047806,-500.0,0.00022465,2]
[327805244,1716495047817,-500.0,0.00022465,2]
[327805246,1716495047826,-271.004898,0.00022465,7]
[327805248,1716495047836,-667.07,0.00022465,2]
[327805251,1716495047845,-500.0,0.00022465,2]
[327805252,1716495047854,-500.0,0.00022465,2]
[327805254,1716495047864,-151.0,0.00022465,7]
[327805256,1716495047873,-5628.15,0.00022465,2]
[327805258,1716495047883,-615.31,0.00022465,2]
[327805260,1716495047892,-500.0,0.00022465,2]
[327805262,1716495047902,-500.0,0.00022465,2]
[327805264,1716495047912,-7035.79,0.00022465,2]
[327805266,1716495047923,-500.0,0.00022465,2]
[327805268,1716495047935,-500.0,0.00022465,2]
[327805270,1716495047944,-500.0,0.00022471,2]
[327805272,1716495047954,-921.39543944,0.00022511,2]
[327805274,1716495047964,-151.0,0.0002252,7]
[327805276,1716495047976,-254.071215,0.0002252,7]
[327805278,1716495047985,-151.0,0.0002252,7]
[327805280,1716495047995,-151.0,0.0002252,7]
[327805282,1716495048004,-151.0,0.0002252,7]
[327805284,1716495048014,-151.0,0.0002252,7]
[327805286,1716495048023,-151.0,0.0002252,7]
[327805288,1716495048033,-151.0,0.0002252,7]
[327805290,1716495048044,-151.0,0.0002252,7]
[327805292,1716495048054,-151.0,0.0002252,7]
[327805294,1716495048063,-151.0,0.0002252,7]
[327805296,1716495048074,-151.0,0.0002252,7]
[327805298,1716495048083,-151.0,0.0002252,7]
[327805300,1716495048093,-151.0,0.0002252,7]
[327805302,1716495048103,-257.389917,0.0002252,7]
[327805304,1716495048112,-294.963847,0.0002252,7]
[327805306,1716495048122,-294.963847,0.0002252,7]
[327805308,1716495048131,-151.0,0.0002252,7]
[327805310,1716495048141,-151.0,0.0002252,7]
[327805312,1716495048152,-317.97841913,0.00022529,2]
[327805314,1716495048162,-1913.382886,0.000226,2]
[327805316,1716495048172,-600.0,0.00022602,2]
[327805318,1716495048182,-700.0,0.00022602,2]
[327805320,1716495048192,-800.0,0.00022617,2]
[327805322,1716495048202,-1227.23,0.00022619,2]
[327805324,1716495048214,-151.0,0.00022639,7]
[327805326,1716495048227,-151.0,0.00022639,7]
[327805328,1716495048236,-10000.0,0.0002268,2]
[327805330,1716495048247,-154.09859632,0.00022696,2]
[327805332,1716495048257,-484.0,0.000227,5]
[327805334,1716495048266,-344.0,0.000227,2]
[327805336,1716495048276,-150.0,0.000227,3]
[327805338,1716495048286,-200.0,0.00022715,2]
[327805340,1716495048296,-1000.0,0.00022715,2]
[327805342,1716495048307,-94507.5408046,0.00022729,2]
[327805344,1716495048317,-5763.3680301,0.00022729,2]
[327805346,1716495048327,-15256.4434904,0.00022729,2]
[327805348,1716495048338,-188.170118,0.00022729,7]
[327805350,1716495048348,-151.0,0.00022729,7]
[327805352,1716495048358,-151.0,0.00022729,7]
[327805354,1716495048367,-151.0,0.00022729,7]
[327805356,1716495048377,-151.0,0.00022729,7]
[327805358,1716495048386,-151.0,0.00022729,7]
[327805360,1716495048396,-271.42102,0.00022729,7]
[327805362,1716495048405,-187.365932,0.00022729,7]
[327805364,1716495048415,-151.0,0.00022729,7]
[327805366,1716495048425,-151.0,0.00022729,7]
[327805368,1716495048435,-225.793991,0.00022729,7]
[327805370,1716495048446,-294.963847,0.00022729,7]
[327805372,1716495048456,-294.963847,0.00022729,7]
[327805374,1716495048465,-151.0,0.00022729,7]
[327805376,1716495048476,-271.004898,0.00022729,7]
[327805378,1716495048486,-271.004898,0.00022729,7]
[327805380,1716495048495,-172.410797,0.00022729,7]
[327805382,1716495048504,-153.55433201,0.00022736,2]
[327805383,1716495048514,-208.21094231,0.00022738,2]
[327805385,1716495048524,-5874.5069088,0.00022738,2]
[327805387,1716495048534,-500.0,0.00022739,2]
[327805389,1716495048543,-500.0,0.00022739,2]
[327805391,1716495048553,-500.0,0.00022739,2]
[327805393,1716495048562,-500.0,0.00022739,2]
[327805395,1716495048572,-500.0,0.00022739,2]
[327805397,1716495048582,-500.0,0.00022739,2]
[327805399,1716495048591,-500.0,0.00022739,2]
[327805401,1716495048600,-500.0,0.00022739,2]
[327805403,1716495048610,-500.0,0.00022739,2]
[327805405,1716495048619,-314.31115622,0.00022739,2]
[327805407,1716495048630,-500.0,0.00022739,2]
[327805409,1716495048639,-500.0,0.00022739,2]
[327805411,1716495048649,-500.0,0.00022739,2]
[327805413,1716495048658,-500.0,0.00022739,2]
[327805415,1716495048668,-249.63044998,0.00022739,2]
[327805417,1716495048677,-533.39,0.00022739,2]
[327805419,1716495048686,-500.0,0.00022739,2]
[327805421,1716495048696,-500.0,0.00022739,2]
[327805423,1716495048705,-500.0,0.00022739,2]
[327805425,1716495048714,-591.07686271,0.00022739,2]
[327805427,1716495048725,-500.0,0.00022739,2]
[327805429,1716495048734,-500.0,0.00022739,2]
[327805431,1716495048744,-500.0,0.00022739,2]
[327805433,1716495048753,-724.57,0.00022739,2]
[327805435,1716495048762,-500.0,0.00022739,2]
[327805437,1716495048772,-500.0,0.00022739,2]
[327805439,1716495048781,-500.0,0.00022739,2]
[327805441,1716495048791,-500.0,0.00022739,2]
[327805443,1716495048800,-150.0,0.00022739,2]
[327805445,1716495048809,-500.0,0.00022739,2]
[327805447,1716495048819,-500.0,0.00022739,2]
[327805449,1716495048828,-500.0,0.00022739,2]
[327805451,1716495048837,-500.0,0.00022739,2]
[327805453,1716495048847,-500.0,0.00022739,2]
[327805455,1716495048856,-500.0,0.00022739,2]
[327805457,1716495048865,-395.93585526,0.00022739,2]
[327805459,1716495048876,-570.85,0.00022739,2]
[327805461,1716495048885,-500.0,0.00022739,2]
[327805463,1716495048896,-500.0,0.00022739,2]
[327805465,1716495048905,-337.39449334,0.00022739,2]
[327805466,1716495048914,-515.0,0.00022739,2]
[327805468,1716495048923,-591.74,0.00022739,2]
[327805471,1716495048934,-2864.0,0.00022739,2]
[327805473,1716495048944,-500.0,0.00022739,2]
[327805474,1716495048954,-500.0,0.00022739,2]
[327805476,1716495048964,-500.0,0.00022739,2]
[327805477,1716495048976,-943.12,0.00022739,2]
[327805478,1716495048986,-500.0,0.00022739,2]
[327805479,1716495048996,-1280.8,0.00022739,2]
[327805480,1716495049005,-500.0,0.00022739,2]
[327805481,1716495049015,-500.0,0.00022739,2]
[327805482,1716495049025,-706.51,0.00022739,2]
[327805483,1716495049035,-520.62,0.00022739,2]
[327805484,1716495049045,-500.0,0.00022739,2]
[327805485,1716495049055,-739.35,0.00022739,2]
[327805486,1716495049065,-931.2,0.00022739,2]
[327805487,1716495049074,-500.0,0.00022739,2]
[327805488,1716495049084,-500.0,0.00022739,2]
[327805489,1716495049093,-500.0,0.00022739,2]
[327805490,1716495049103,-500.0,0.00022739,2]
[327805491,1716495049113,-1024.24,0.00022739,2]
[327805492,1716495049122,-500.0,0.00022739,2]
[327805493,1716495049133,-500.0,0.00022739,2]
[327805494,1716495049142,-500.0,0.00022739,2]
[327805495,1716495049152,-500.0,0.00022739,2]
[327805496,1716495049161,-500.0,0.00022739,2]
[327805497,1716495049171,-500.0,0.00022739,2]
[327805498,1716495049181,-500.0,0.00022739,2]
[327805499,1716495049190,-535.86945687,0.00022739,2]
[327805500,1716495049199,-621.39,0.00022739,2]
[327805501,1716495049210,-500.0,0.00022739,2]
[327805502,1716495049224,-918.01,0.00022739,2]
[327805503,1716495049236,-1482.24,0.00022739,2]
[327805504,1716495049246,-500.0,0.00022739,2]